[Event "Queens Festival Final-A 2022"]
[Site "Tornelo"]
[Date "2022.06.25"]
[Round "6.4"]
[White "Cori T., Deysi"]
[Black "Song, Yuxin"]
[Result "1-0"]
[ECO "D05"]
[WhiteElo "2367"]
[BlackElo "2317"]
[Annotator "TA"]
[PlyCount "73"]
[EventDate "2022.06.24"]
[EventType "tourn"]
[EventCountry "NET"]
[SourceTitle "playchess.com"]
[Source "ChessBase"]
[SourceQuality "1"]
[TimeControl "180+2"]

{[%evp 9,73,1,12,8,16,0,12,-1,12,0,4,3,20,10,13,14,22,29,89,-8,-6,12,16,-154,-155,-169,-151,-161,-152,-216,-210,-200,0,0,69,0,0,-138,74,66,152,81,89,67,220,219,264,255,270,271,257,217,466,461,764,753,956,953,864,948,891,887,1469,1277,912,912]} 1. d4 {[%emt 0:00:02]} Nf6 {[%emt 0:00:04]} 2. Nf3 {[%emt 0:00:02]} e6 {[%emt 0:00:01]} 3. e3 {[%emt 0:00:01]} d5 {[%emt 0:00:01]} 4. Bd3 {[%emt 0:00:02]} Nbd7 {[%emt 0:00:05]} 5. O-O {[%emt 0:00:02]} Bd6 {[%emt 0:00:02]} 6. c4 {[%emt 0:00:05] D05: Colle System with ...e6.} dxc4 {[%emt 0:00:06]} 7. Bxc4 {[%emt 0:00:01]} a6 {[%emt 0:00:03]} 8. Qe2 {[%emt 0:00:08] The position is equal.} b5 {[%emt 0:00:04]} 9. Bd3 {[%emt 0:00:00]} c5 {[%emt 0:00:03]} 10. a4 {[%emt 0:00:03] [#]} c4 $146 {[%emt 0:00:12]} ({Predecessor:} 10... cxd4 11. exd4 b4 12. Nbd2 Bb7 13. a5 Nd5 14. Nc4 Be7 15. Nfe5 N7f6 16. Bg5 h6 {1-0 (34) Cramling,P (2528)-Paehtz,E (2449) Fuegen 2006}) 11. Bc2 {[%emt 0:00:02] aiming for e4.} Bb7 {[%emt 0:00:02]} 12. e4 {[%emt 0:00:01] [#] Strongly threatening e5.} e5 {[%emt 0:00:03]} 13. Rd1 {[%emt 0:00:03]} Qc7 {[%emt 0:00:07]} (13... Qb8 $11 {keeps the balance.}) 14. Bg5 {[%emt 0:00:03]} (14. axb5 $16 {[%cal Ob5b6] Black must now prevent b6!} exd4 15. Rxd4 axb5 16. Rxa8+ Bxa8 17. Nc3) 14... O-O {[%emt 0:00:41]} 15. dxe5 {[%emt 0:00:09]} Bxe5 {[%emt 0:00:02]} 16. Nc3 $2 {[%emt 0:00:17]} (16. axb5 $11 axb5 17. Rxa8 Rxa8 18. Na3) 16... b4 $17 {[%emt 0:00:19]} 17. Nd5 {[%emt 0:00:02]} Bxd5 {[%emt 0:00:26]} 18. exd5 {[%emt 0:00:01]} Bxb2 {[%emt 0:00:01]} 19. Bxh7+ {[%emt 0:00:14]} (19. d6 $17 {was called for.} Qb7 20. Rab1) 19... Nxh7 $19 {[%emt 0:00:04]} 20. Qxb2 {[%emt 0:00:01]} c3 $2 {[%emt 0:00:04]} (20... Nxg5 $19 21. Nxg5 Qe5) 21. Qxb4 $11 {[%emt 0:00:04]} Rab8 {[%emt 0:00:07]} (21... Nxg5 $11 22. Nxg5 Rab8) 22. Qf4 {[%emt 0:00:14] White is more active.} ({Better is} 22. Bf4 $1 $14 Rxb4 23. Bxc7) 22... Qc5 {[%emt 0:00:13]} 23. Qf5 {[%emt 0:00:46]} (23. h4 $11) 23... Nhf6 $2 {[%emt 0:00:17]} (23... Nxg5 $17 {keeps the pressure on.} 24. Qxg5 (24. Nxg5 Nf6 $17) 24... Rb2) 24. Be3 $36 {[%emt 0:00:04][%mdl 2048] White has the initiative.} Qe7 {[%emt 0:00:05]} (24... Qa5 $14) 25. d6 {[%emt 0:00:05]} (25. Nd4 $142) 25... Qe4 {[%emt 0:00:03]} 26. Nd4 {[%emt 0:00:11]} Qxf5 {[%emt 0:00:08]} ({Black should try} 26... Rfc8 $14) 27. Nxf5 $18 {[%emt 0:00:02]} Rb4 {[%emt 0:00:02]} 28. Rac1 {[%emt 0:00:26]} Rc4 {[%emt 0:00:02]} 29. Rd4 {[%emt 0:00:03]} Rxd4 {[%emt 0:00:27]} 30. Bxd4 {[%emt 0:00:02]} ({Weaker is} 30. Nxd4 Rc8 $16) 30... Ne4 {[%emt 0:00:02]} (30... Nd5 {is a better defense.} 31. Bxc3 (31. Bxg7 Rc8 $18) 31... Rc8) 31. f3 {[%emt 0:00:04] White is clearly winning.} Nd2 {[%emt 0:00:04]} (31... Nef6 $142 32. Rxc3 Rd8) 32. Rxc3 {[%emt 0:00:04]} Rb8 {[%emt 0:00:02]} 33. Rc7 {[%emt 0:00:05]} Nf8 {[%emt 0:00:03]} 34. Bxg7 {[%emt 0:00:13]} Ne6 {[%emt 0:00:02] [#]} 35. Bf6 $1 {[%emt 0:00:09] And now Rc2 would win.} Nxc7 {[%emt 0:00:02]} (35... Kf8 36. Rc6) 36. dxc7 {[%emt 0:00:02]} Rb1+ {[%emt 0:00:01]} 37. Kf2 {[%emt 0:00:01] White used his chance.  Weighted Error Value: White=0.39/Black=0.55} 1-0

[Event "Queens Festival Final-A 2022"]
[Site "Tornelo"]
[Date "2022.06.25"]
[Round "7.1"]
[White "Gueci, Tea"]
[Black "Cori T., Deysi"]
[Result "0-1"]
[ECO "C10"]
[WhiteElo "2248"]
[BlackElo "2367"]
[Annotator "TA"]
[PlyCount "88"]
[EventDate "2022.06.24"]
[EventType "tourn"]
[EventCountry "NET"]
[SourceTitle "playchess.com"]
[Source "ChessBase"]
[SourceQuality "1"]
[TimeControl "180+2"]

{[%evp 9,88,-77,-79,-106,-118,-104,-85,-97,-72,-93,-88,-95,-41,-98,-97,-163,-154,-154,-143,-161,-154,-200,-205,-253,-256,-323,-256,-241,-251,-232,-212,-265,-156,-291,-278,-276,-292,-278,-246,-265,-280,-322,-276,-285,-256,-344,-334,-383,-311,-307,-311,-325,-328,-330,-330,-350,-349,-342,-328,-481,-396,-376,-388,-440,-404,-772,-753,-1083,-1223,-2027,-1975,-2241,-2247,-7423,-4168,-29988,-29988,-29988,-29987,-29991,-29992]} 1. e4 {[%emt 0:00:02]} e6 {[%emt 0:00:04]} 2. d4 {[%emt 0:00:02]} d5 {[%emt 0:00:01]} 3. Nc3 {[%emt 0:00:05]} a6 {[%emt 0:00:03]} 4. e5 {[%emt 0:00:06]} c5 {[%emt 0:00:03]} 5. Be3 {[%emt 0:00:13]} Nc6 {[%emt 0:00:04] [#]} 6. Nge2 $146 {[%emt 0:00:21] C10: French with 3 Nc3: Unusual Black 3rd moves and 3...dxe4.} ({Wrong is} 6. dxc5 $2 d4 7. Bxd4 Qxd4 8. Qxd4 Nxd4 $19) ({Predecessor:} 6. Nf3 b5 7. a3 Qb6 8. Ne2 c4 9. c3 a5 10. g4 Bb7 11. Bg2 b4 12. axb4 axb4 {0-1 (52) Zhou,Q (2229)-Costachi,M (2471) Chess.com INT 2020}) 6... cxd4 {[%emt 0:00:09]} 7. Bxd4 {[%emt 0:00:00]} Nge7 {[%emt 0:00:03]} 8. f4 {[%emt 0:00:05] Black is better.} Nxd4 {[%emt 0:00:02]} 9. Nxd4 {[%emt 0:00:03]} Qb6 {[%emt 0:00:01]} 10. Qd2 {[%emt 0:00:20]} Nc6 {[%emt 0:00:09]} (10... Qxb2 $17 11. Rb1 Qa3) 11. O-O-O {[%emt 0:00:28]} (11. Nxc6 $15 Qxc6 12. Ne2) 11... Nxd4 $17 {[%emt 0:00:03] Black keeps a firm grip on the game.} 12. Qxd4 {[%emt 0:00:00] [#]} (12. Na4 $17 Qc6 13. Qxd4) 12... Bc5 $1 $36 {[%emt 0:00:01][%cal Bf8c5,Bc5e3,Be3f4][%mdl 2080] Black has strong initiative.} 13. Qd3 {[%emt 0:00:11]} Be3+ {[%emt 0:00:03]} 14. Kb1 {[%emt 0:00:01]} Bxf4 {[%emt 0:00:01]} 15. Na4 {[%emt 0:00:16]} (15. Re1 $17) 15... Qc7 {[%emt 0:00:08]} 16. Qa3 {[%emt 0:00:17]} Bxe5 {[%emt 0:00:07]} 17. Re1 {[%emt 0:00:16]} b5 {[%emt 0:00:51]} 18. Nb6 {[%emt 0:00:02]} Qxb6 {[%emt 0:00:19]} 19. Rxe5 {[%emt 0:00:03]} f6 {[%emt 0:00:02]} 20. Re1 {[%emt 0:00:04]} Kf7 {[%emt 0:00:02]} (20... e5 $19 {Hoping for ...Be6.} 21. Be2 Be6) 21. Bd3 {[%emt 0:00:03]} (21. g4 $17) 21... e5 {[%emt 0:00:01][%cal Be6e5,Be5e4][%mdl 32]} 22. Rhf1 {[%emt 0:00:06]} e4 {[%emt 0:00:01] Threatens to win with ...b4.} 23. Be2 {[%emt 0:00:02]} ({Of course not} 23. Bxe4 dxe4 24. Rxe4 Be6 $19) 23... h5 {[%emt 0:00:06]} 24. Rd1 {[%emt 0:00:11]} Be6 {[%emt 0:00:02]} 25. h3 {[%emt 0:00:01]} Rad8 {[%emt 0:00:16]} 26. Qg3 {[%emt 0:00:06]} Qd6 {[%emt 0:00:05]} 27. Qh4 {[%emt 0:00:04]} Qe5 {[%emt 0:00:03]} 28. c3 {[%emt 0:00:06]} g5 {[%emt 0:00:09]} 29. Qf2 {[%emt 0:00:02]} Kg6 {[%emt 0:00:09][%cal Ob5b4]} 30. Rd4 {[%emt 0:00:02]} h4 {[%emt 0:00:21]} 31. Bd1 {[%emt 0:00:01]} f5 {[%emt 0:00:07][%cal Bf6f5,Bf5f4][%mdl 32]} 32. Bb3 {[%emt 0:00:03]} f4 {[%emt 0:00:03]} 33. Rfd1 {[%emt 0:00:03]} Rhf8 {[%emt 0:00:02]} 34. Qd2 {[%emt 0:00:07]} (34. Bc2 $142) 34... e3 {[%emt 0:00:02]} 35. Qe2 {[%emt 0:00:04]} Bf5+ {[%emt 0:00:05]} 36. Ka1 {[%emt 0:00:01]} Be4 {[%emt 0:00:03] And now ...Kg7 would win.} 37. c4 {[%emt 0:00:04]} (37. Bc2 $142 Bxc2 38. Qxc2+ Qf5 39. Qe2) 37... bxc4 {[%emt 0:00:02]} 38. Bxc4 {[%emt 0:00:01]} Rc8 {[%emt 0:00:06]} 39. Bb3 {[%emt 0:00:01] [#]} Qxd4 $3 {[%emt 0:00:03][%mdl 512]} 40. a3 {[%emt 0:00:09]} (40. Qe1 Bd3) 40... Qf6 {[%emt 0:00:04]} 41. Bxd5 {[%emt 0:00:04]} Bxd5 {[%emt 0:00:03]} 42. Rxd5 {[%emt 0:00:00]} Rfd8 {[%emt 0:00:04] Black mates.} 43. Qd3+ {[%emt 0:00:01]} Kh6 {[%emt 0:00:04]} 44. Ka2 {[%emt 0:00:05]} Qe6 {[%emt 0:00:03] Weighted Error Value: White=0.93/Black=0.15 (very precise)} 0-1

[Event "Queens Festival Final-A 2022"]
[Site "Tornelo"]
[Date "2022.06.25"]
[Round "7.2"]
[White "Yuan, Ye"]
[Black "Okuyaz, Duru"]
[Result "1/2-1/2"]
[ECO "D16"]
[WhiteElo "2108"]
[BlackElo "2090"]
[Annotator "NA RC"]
[PlyCount "53"]
[EventDate "2022.06.24"]
[EventType "tourn"]
[EventCountry "NET"]
[SourceTitle "playchess.com"]
[Source "ChessBase"]
[SourceQuality "1"]
[TimeControl "180+2"]

1. d4 {[%emt 0:00:02]} d5 {[%emt 0:00:04]} 2. c4 {[%emt 0:00:02]} c6 {[%emt 0:00:01]} 3. Nf3 {[%emt 0:00:05]} Nf6 {[%emt 0:00:01]} 4. Nc3 {[%emt 0:00:04]} dxc4 {[%emt 0:00:02]} 5. a4 {[%emt 0:00:02]} Bg4 {[%emt 0:00:02]} 6. Ne5 {[%emt 0:00:04]} Bc8 {[%emt 0:00:04]} 7. Nxc4 {[%emt 0:00:04]} e6 {[%emt 0:00:03]} 8. Bg5 {[%emt 0:00:09]} Be7 {[%emt 0:00:01]} 9. e3 {[%emt 0:00:02]} O-O {[%emt 0:00:02]} 10. Bd3 {[%emt 0:00:06]} Nd5 {[%emt 0:00:01]} 11. Bxe7 {[%emt 0:00:02]} Qxe7 {[%emt 0:00:01]} 12. O-O {[%emt 0:00:02]} Nd7 {[%emt 0:00:06]} 13. Ne4 {[%emt 0:00:08]} N7f6 {[%emt 0:00:04]} 14. Ng5 {[%emt 0:00:06]} h6 {[%emt 0:00:02]} 15. Nf3 {[%emt 0:00:02]} Nb4 {[%emt 0:00:02]} 16. Bb1 {[%emt 0:00:02]} c5 {[%emt 0:00:02]} 17. Qb3 {[%emt 0:00:10]} cxd4 {[%emt 0:00:02]} 18. Nxd4 {[%emt 0:00:01]} e5 {[%emt 0:00:09]} 19. Nf5 {[%emt 0:00:01]} Bxf5 {[%emt 0:00:02]} 20. Bxf5 {[%emt 0:00:02]} e4 {[%emt 0:00:10]} 21. a5 {[%emt 0:00:02]} Nd3 {[%emt 0:00:15]} 22. Rfd1 {[%emt 0:00:12]} Rfd8 {[%emt 0:00:04]} 23. Qc3 {[%emt 0:00:12]} Nd5 {[%emt 0:00:17]} 24. Qd4 {[%emt 0:00:06]} Nf6 {[%emt 0:00:01]} 25. Qc3 {[%emt 0:00:08]} Nd5 {[%emt 0:00:02]} 26. Qd4 {[%emt 0:00:09]} Nf6 {[%emt 0:00:05]} 27. Qc3 {[%emt 0:00:02]} 1/2-1/2

[Event "Queens Festival Final-A 2022"]
[Site "Tornelo"]
[Date "2022.06.25"]
[Round "7.3"]
[White "Alboredo, Julia"]
[Black "Balabayeva, Xeniya"]
[Result "0-1"]
[ECO "B12"]
[WhiteElo "2252"]
[BlackElo "2177"]
[Annotator "TA"]
[PlyCount "118"]
[EventDate "2022.06.24"]
[EventType "tourn"]
[EventCountry "NET"]
[SourceTitle "playchess.com"]
[Source "ChessBase"]
[SourceQuality "1"]
[TimeControl "180+2"]

{[%evp 11,117,7,10,-10,18,14,8,12,46,47,62,45,243,33,36,28,43,11,40,54,45,0,0,-26,-52,-66,-35,-38,-38,-122,-38,-87,-83,-107,-56,-100,-102,-111,-99,-106,-89,-135,-89,-156,-156,-178,0,-543,-477,-540,-537,-531,-519,-718,-705,-821,-798,-767,-870,-844,-812,-1067,-1037,-1084,-1046,-1050,-1050,-1032,-1021,-1008,-1012,-935,-841,-29966,-29968,-29966,-29964,-29971,-29972,-29969,-29966,-29973,-29974,-29972,-29973,-29973,-29974,-29982,-29973,-29972,-29973,-29981,-29980,-29983,-29984,-29985,-29986,-29986,-29987,-29988,-29988,-29988,-29988,-29991,-29992,-29998,-29999,-29999]} 1. e4 {[%emt 0:00:02]} c6 {[%emt 0:00:04]} 2. d4 {[%emt 0:00:02]} d5 {[%emt 0:00:01]} 3. e5 {[%emt 0:00:01]} Bf5 {[%emt 0:00:01]} 4. h4 {[%emt 0:00:01]} h5 {[%emt 0:00:02]} 5. Bd3 {[%emt 0:00:02]} Bxd3 {[%emt 0:00:02]} 6. Qxd3 {[%emt 0:00:00]} e6 {[%emt 0:00:02]} 7. Bg5 {[%emt 0:00:02] B12: Caro-Kann: Advance Variation.} Qa5+ {[%emt 0:00:04]} (7... Qb6 $5 {[%cal Rb6b2]}) 8. Nd2 {[%emt 0:00:03]} Qa6 {[%emt 0:00:02]} 9. c4 {[%emt 0:00:01] The position is equal.} Be7 {[%emt 0:00:07]} 10. Ngf3 {[%emt 0:00:03]} Bxg5 {[%emt 0:00:05]} 11. Nxg5 {[%emt 0:00:06]} (11. hxg5 $5 {[%cal Rg5g6]} Ne7 12. a4 $11) 11... Nh6 $2 {[%emt 0:00:09] [#]} (11... Ne7 $1 $14) 12. O-O $2 {[%emt 0:00:03]} ({White has to play} 12. Nxe6 $1 $18 {[%mdl 512] Strongly threatening Nc7+.} fxe6 13. Qg6+ Ke7 14. Qxg7+ Nf7 15. Qf6+ Kf8 16. Qxe6) 12... Nf5 $14 {[%emt 0:00:11]} 13. g3 {[%emt 0:00:03]} Nd7 {[%emt 0:00:06] [#]} 14. a4 $146 {[%emt 0:00:06]} ({Predecessor:} 14. Qc3 O-O 15. b3 Rac8 16. Rfd1 c5 17. dxc5 Rxc5 18. Qf3 g6 19. cxd5 Rxd5 20. Nc4 Nxe5 21. Nxe5 Rxe5 {0-1 (62) Nurmanova,A (2008)-Nomin Erdene,D (2382) Chess.com INT 2021}) 14... Rd8 {[%emt 0:00:12]} 15. Qc3 {[%emt 0:00:08]} dxc4 {[%emt 0:00:13]} 16. Nxc4 {[%emt 0:00:00]} Nb6 {[%emt 0:00:02]} 17. Nxb6 {[%emt 0:00:41]} Qxb6 {[%emt 0:00:04]} 18. Rfd1 {[%emt 0:00:09]} Rxd4 {[%emt 0:00:05]} (18... Nxd4 $5 {[%cal Rd4e2]} 19. Kh2 Nf5 20. Rxd8+ Qxd8 $15) 19. a5 {[%emt 0:00:09]} Qd8 {[%emt 0:00:03]} 20. Qb3 {[%emt 0:00:12]} ({Better is} 20. Rxd4 $15 Qxd4 21. Qxd4 Nxd4 22. Ra4) 20... O-O {[%emt 0:00:07]} (20... Qd5 $1 $17 {[%cal Rd5b3]} 21. Qf3 Rxd1+ 22. Rxd1 Qxa5) 21. Qf3 {[%emt 0:00:08]} (21. Rxd4 $1 $15 {was preferrable.} Qxd4 22. a6 bxa6 23. Rxa6) 21... g6 $17 {[%emt 0:00:15]} 22. Ne4 {[%emt 0:00:01]} Kg7 {[%emt 0:00:09]} (22... Qc7 $17 23. Nf6+ Kg7 24. Rxd4 Nxd4) 23. Kg2 {[%emt 0:00:11]} Qd5 {[%emt 0:00:04][%csl LRe4,LRe5]} 24. Rxd4 {[%emt 0:00:12]} Qxd4 {[%emt 0:00:02]} 25. Rd1 {[%emt 0:00:14]} Qxe5 {[%emt 0:00:02]} 26. Rd7 {[%emt 0:00:01]} Qxb2 {[%emt 0:00:21]} 27. Ng5 {[%emt 0:00:03]} (27. Qf4 $142) 27... Kg8 {[%emt 0:00:02]} 28. Qe4 {[%emt 0:00:24] [#]} Qf6 $2 {[%emt 0:00:13]} (28... a6 $1 $19 29. Nf3 b5 30. axb6 Qxb6) 29. Rxb7 $2 {[%emt 0:00:04][%mdl 8192]} (29. Qb4 $11 Qe5 30. Qxb7) 29... Nd6 $1 $19 {[%emt 0:00:03][%csl LRb7,LRe4]} 30. Qxc6 {[%emt 0:00:13]} Nxb7 {[%emt 0:00:02]} 31. Qxb7 {[%emt 0:00:00][%mdl 4096] Endgame KQR-KQN} Qd4 {[%emt 0:00:03]} 32. a6 {[%emt 0:00:03]} Qd5+ {[%emt 0:00:02]} 33. Ne4 {[%emt 0:00:07]} Qxb7 {[%emt 0:00:09]} 34. axb7 {[%emt 0:00:00] KR-KN} Rb8 {[%emt 0:00:02]} 35. Nc5 {[%emt 0:00:02]} a5 {[%emt 0:00:06]} 36. Kf3 {[%emt 0:00:06]} a4 {[%emt 0:00:02]} 37. Nxa4 {[%emt 0:00:01]} Rxb7 {[%emt 0:00:01]} 38. Nc5 {[%emt 0:00:00]} Rb5 {[%emt 0:00:02]} 39. Ne4 {[%emt 0:00:02]} Kf8 {[%emt 0:00:02]} 40. Kg2 {[%emt 0:00:04]} Ke7 {[%emt 0:00:02]} 41. Ng5 {[%emt 0:00:01]} f6 {[%emt 0:00:01]} 42. Nh3 {[%emt 0:00:04]} e5 {[%emt 0:00:02] Black mates.} 43. Ng1 {[%emt 0:00:01]} Ke6 {[%emt 0:00:01]} 44. Ne2 {[%emt 0:00:02]} Rb3 {[%emt 0:00:02]} 45. Nc1 {[%emt 0:00:13]} Ra3 {[%emt 0:00:02]} 46. Ne2 {[%emt 0:00:02]} Kf5 {[%emt 0:00:02]} 47. Ng1 {[%emt 0:00:03]} g5 {[%emt 0:00:02]} 48. hxg5 {[%emt 0:00:03]} fxg5 {[%emt 0:00:01]} 49. Nf3 {[%emt 0:00:02]} e4 {[%emt 0:00:02]} 50. Nd4+ {[%emt 0:00:05]} Ke5 {[%emt 0:00:07]} 51. Nc2 {[%emt 0:00:07]} Rd3 {[%emt 0:00:07]} 52. Nb4 {[%emt 0:00:02]} Rd2 {[%emt 0:00:03]} 53. Nc6+ {[%emt 0:00:02]} Kd6 {[%emt 0:00:01]} 54. Na5 {[%emt 0:00:03]} Kd5 {[%emt 0:00:06]} 55. Nb3 {[%emt 0:00:02]} Rb2 {[%emt 0:00:01]} 56. Nc1 {[%emt 0:00:03]} e3 {[%emt 0:00:01]} 57. Kf3 {[%emt 0:00:02]} exf2 {[%emt 0:00:03]} 58. Nd3 {[%emt 0:00:01]} f1=Q+ {[%emt 0:00:03]} 59. Nf2 {[%emt 0:00:00]} Qxf2# {[%emt 0:00:01] Weighted Error Value: White=0.72/Black=0.26 (precise)} 0-1

[Event "Queens Festival Final-A 2022"]
[Site "Tornelo"]
[Date "2022.06.25"]
[Round "7.4"]
[White "Castrillon Gomez, Melissa"]
[Black "Ismayil, Malak"]
[Result "1-0"]
[ECO "E74"]
[WhiteElo "2198"]
[BlackElo "2001"]
[Annotator "RC"]
[PlyCount "137"]
[EventDate "2022.06.24"]
[EventType "tourn"]
[EventCountry "NET"]
[SourceTitle "playchess.com"]
[Source "ChessBase"]
[SourceQuality "1"]
[TimeControl "180+2"]

1. d4 {[%emt 0:00:02]} Nf6 {[%emt 0:00:05]} 2. c4 {[%emt 0:00:02]} g6 {[%emt 0:00:02]} 3. Nc3 {[%emt 0:00:02]} Bg7 {[%emt 0:00:01]} 4. e4 {[%emt 0:00:02]} d6 {[%emt 0:00:02]} 5. Be2 {[%emt 0:00:01]} O-O {[%emt 0:00:02]} 6. Bg5 {[%emt 0:00:01]} c5 {[%emt 0:00:07]} 7. d5 {[%emt 0:00:02]} Nbd7 {[%emt 0:00:09]} 8. h3 {[%emt 0:00:02]} a6 {[%emt 0:00:02]} 9. Nf3 {[%emt 0:00:10]} Qb6 {[%emt 0:00:19]} 10. Qd2 {[%emt 0:00:12]} Re8 {[%emt 0:00:03]} 11. O-O {[%emt 0:00:02]} e6 {[%emt 0:00:11]} 12. Rae1 {[%emt 0:00:13]} exd5 {[%emt 0:00:08]} 13. exd5 {[%emt 0:00:02]} Ne5 {[%emt 0:00:07]} 14. Nxe5 {[%emt 0:00:03]} Rxe5 {[%emt 0:00:02]} 15. Bf4 {[%emt 0:00:08]} Re8 {[%emt 0:00:02]} 16. Bd3 {[%emt 0:00:05]} Bd7 {[%emt 0:00:04]} 17. b3 {[%emt 0:00:05]} Nh5 {[%emt 0:00:05]} 18. Bh2 {[%emt 0:00:06]} Qa5 {[%emt 0:00:04]} 19. Ne4 {[%emt 0:00:12]} Qxd2 {[%emt 0:00:22]} 20. Nxd2 {[%emt 0:00:02]} Be5 {[%emt 0:00:16]} 21. Bxe5 {[%emt 0:00:05]} dxe5 {[%emt 0:00:01]} 22. Ne4 {[%emt 0:00:02]} b6 {[%emt 0:00:02]} 23. Be2 {[%emt 0:00:32]} f5 {[%emt 0:00:14]} 24. Bxh5 {[%emt 0:00:08]} fxe4 {[%emt 0:00:02]} 25. Bg4 {[%emt 0:00:05]} Bf5 {[%emt 0:00:02]} 26. Bxf5 {[%emt 0:00:07]} gxf5 {[%emt 0:00:02]} 27. g4 {[%emt 0:00:01]} fxg4 {[%emt 0:00:02]} 28. hxg4 {[%emt 0:00:01]} Kf7 {[%emt 0:00:01]} 29. Rxe4 {[%emt 0:00:02]} Kf6 {[%emt 0:00:01]} 30. f4 {[%emt 0:00:12]} exf4 {[%emt 0:00:02]} 31. Rfxf4+ {[%emt 0:00:11]} Kg5 {[%emt 0:00:06]} 32. Kg2 {[%emt 0:00:15]} b5 {[%emt 0:00:13]} 33. Rf5+ {[%emt 0:00:08]} Kg6 {[%emt 0:00:01]} 34. Rfe5 {[%emt 0:00:11]} Rf8 {[%emt 0:00:08]} 35. Re6+ {[%emt 0:00:16]} Kg5 {[%emt 0:00:03]} 36. Kg3 {[%emt 0:00:03]} Rf6 {[%emt 0:00:09]} 37. R4e5+ {[%emt 0:00:06]} Kg6 {[%emt 0:00:01]} 38. Rxf6+ {[%emt 0:00:04]} Kxf6 {[%emt 0:00:02]} 39. Re6+ {[%emt 0:00:02]} Kf7 {[%emt 0:00:05]} 40. Rc6 {[%emt 0:00:02]} bxc4 {[%emt 0:00:02]} 41. bxc4 {[%emt 0:00:01]} Re8 {[%emt 0:00:04]} 42. Rxc5 {[%emt 0:00:03]} Re2 {[%emt 0:00:02]} 43. Ra5 {[%emt 0:00:02]} Rc2 {[%emt 0:00:02]} 44. c5 {[%emt 0:00:03]} Rc4 {[%emt 0:00:06]} 45. Kf3 {[%emt 0:00:05]} Kf6 {[%emt 0:00:04]} 46. Ke3 {[%emt 0:00:02]} Ke5 {[%emt 0:00:02]} 47. c6 {[%emt 0:00:05]} Kd6 {[%emt 0:00:10]} 48. g5 {[%emt 0:00:01]} Rg4 {[%emt 0:00:06]} 49. Rxa6 {[%emt 0:00:03]} Kxd5 {[%emt 0:00:04]} 50. c7 {[%emt 0:00:03]} Rc4 {[%emt 0:00:02]} 51. Ra7 {[%emt 0:00:02]} Ke5 {[%emt 0:00:06]} 52. Kd3 {[%emt 0:00:03]} Rc1 {[%emt 0:00:02]} 53. a4 {[%emt 0:00:02]} Kf5 {[%emt 0:00:02]} 54. Kd4 {[%emt 0:00:01]} Kxg5 {[%emt 0:00:01]} 55. Ra5+ {[%emt 0:00:03]} Kg4 {[%emt 0:00:05]} 56. Rc5 {[%emt 0:00:01]} Rd1+ {[%emt 0:00:01]} 57. Ke5 {[%emt 0:00:02]} Re1+ {[%emt 0:00:02]} 58. Kd6 {[%emt 0:00:01]} Rd1+ {[%emt 0:00:02]} 59. Kc6 {[%emt 0:00:02]} h5 {[%emt 0:00:03]} 60. c8=Q+ {[%emt 0:00:03]} Kh4 {[%emt 0:00:01]} 61. Rc4+ {[%emt 0:00:02]} Kg3 {[%emt 0:00:02]} 62. Rc3+ {[%emt 0:00:01]} Kh4 {[%emt 0:00:03]} 63. Qh3+ {[%emt 0:00:01]} Kg5 {[%emt 0:00:02]} 64. Rc5+ {[%emt 0:00:01]} Kf6 {[%emt 0:00:01]} 65. Qxh5 {[%emt 0:00:01]} Ke6 {[%emt 0:00:04]} 66. Qxd1 {[%emt 0:00:02]} Kf6 {[%emt 0:00:02]} 67. Rc2 {[%emt 0:00:01]} Ke5 {[%emt 0:00:01]} 68. Re2+ {[%emt 0:00:02]} Kf4 {[%emt 0:00:03]} 69. Qf1+ {[%emt 0:00:00]} 1-0